[Event "Live Chess"]
[Site "Chess.com"]
[Date "2023.05.21"]
[Round "-"]
[White "defenderalist"]
[Black "Cimon"]
[Result "0-1"]
[WhiteElo "1649"]
[BlackElo "1834"]
[TimeControl "300"]
[EndTime "2:33:52 PDT"]
[Termination "Cimon won by resignation"]

1. e4 {[%clk 0:04:55]} 1... c5 {[%clk 0:04:58]} 2. Nf3 {[%clk 0:04:54.3]} 2...
Nc6 {[%clk 0:04:56.9]} 3. d4 {[%clk 0:04:54.2]} 3... cxd4 {[%clk 0:04:56.1]} 4.
Nxd4 {[%clk 0:04:54.1]} 4... Nf6 {[%clk 0:04:55.3]} 5. Nxc6 {[%clk 0:04:53.5]}
5... bxc6 {[%clk 0:04:53.8]} 6. Nc3 {[%clk 0:04:53.1]} 6... e5 {[%clk
0:04:51.8]} 7. Bd3 {[%clk 0:04:52.4]} 7... Bb4 {[%clk 0:04:49.9]} 8. Bd2 {[%clk
0:04:50.2]} 8... O-O {[%clk 0:04:47.6]} 9. a3 {[%clk 0:04:49]} 9... Be7 {[%clk
0:04:45.3]} 10. O-O {[%clk 0:04:47.6]} 10... h6 {[%clk 0:04:43.2]} 11. Rb1
{[%clk 0:04:43.9]} 11... d5 {[%clk 0:04:41.8]} 12. exd5 {[%clk 0:04:42.2]} 12...
cxd5 {[%clk 0:04:40.8]} 13. Be2 {[%clk 0:04:33.8]} 13... d4 {[%clk 0:04:29.7]}
14. Na2 {[%clk 0:04:23.3]} 14... Bb7 {[%clk 0:04:26.5]} 15. f4 {[%clk
0:04:18.5]} 15... e4 {[%clk 0:04:23.5]} 16. Bc4 {[%clk 0:04:10.2]} 16... Rc8
{[%clk 0:04:17.3]} 17. Bb3 {[%clk 0:03:56.2]} 17... Bc5 {[%clk 0:04:10.6]} 18.
Bb4 {[%clk 0:03:54]} 18... Bb6 {[%clk 0:03:56.4]} 19. Kh1 {[%clk 0:03:52.4]}
19... Re8 {[%clk 0:03:53.1]} 20. Nc1 {[%clk 0:03:41.6]} 20... a5 {[%clk
0:03:49.3]} 21. Be1 {[%clk 0:03:35.6]} 21... Qd6 {[%clk 0:03:43.7]} 22. Bg3
{[%clk 0:03:33.3]} 22... Qc6 {[%clk 0:03:38]} 23. c3 {[%clk 0:02:51.4]} 23... d3
{[%clk 0:03:14.8]} 24. Ba4 {[%clk 0:02:47.9]} 24... Qd5 {[%clk 0:03:09.2]} 25.
Bxe8 {[%clk 0:02:46.2]} 25... Rxe8 {[%clk 0:03:07.5]} 26. c4 {[%clk 0:02:24.5]}
26... Qxc4 {[%clk 0:03:00.8]} 27. Qd2 {[%clk 0:02:22.3]} 27... Qd5 {[%clk
0:02:43.5]} 28. Ne2 {[%clk 0:01:43.8]} 28... e3 {[%clk 0:02:39.5]} 29. Nc3
{[%clk 0:01:41.7]} 29... Qc6 {[%clk 0:02:30.3]} 0-1

[Event "Live Chess"]
[Site "Chess.com"]
[Date "2023.05.21"]
[Round "-"]
[White "whitedjohn"]
[Black "Davidagye"]
[Result "1/2-1/2"]
[WhiteElo "1656"]
[BlackElo "1669"]
[TimeControl "300"]
[EndTime "2:34:02 PDT"]
[Termination "Game drawn by agreement"]

1. e4 {[%clk 0:04:58.5]} 1... e5 {[%clk 0:04:59]} 2. Nf3 {[%clk 0:04:57.3]} 2...
Nc6 {[%clk 0:04:58.5]} 3. Bb5 {[%clk 0:04:55.2]} 3... a6 {[%clk 0:04:57]} 4. Ba4
{[%clk 0:04:53.9]} 4... Nf6 {[%clk 0:04:56.1]} 5. Kf1 {[%clk 0:04:53.1]} 5... b5
{[%clk 0:04:53.9]} 6. Bb3 {[%clk 0:04:51.7]} 6... Nxe4 {[%clk 0:04:50.7]} 7. d3
{[%clk 0:04:50.3]} 7... Nc5 {[%clk 0:04:48.7]} 8. Ng5 {[%clk 0:04:46.2]} 8...
Nxb3 {[%clk 0:04:46.6]} 9. axb3 {[%clk 0:04:43.9]} 9... Be7 {[%clk 0:04:45.7]}
10. Ne4 {[%clk 0:04:40.7]} 10... d5 {[%clk 0:04:44.5]} 11. Ng3 {[%clk
0:04:38.3]} 11... Bh4 {[%clk 0:04:40.3]} 12. Qh5 {[%clk 0:04:35.8]} 12... Bxg3
{[%clk 0:04:38.8]} 13. hxg3 {[%clk 0:04:34.4]} 13... Qf6 {[%clk 0:04:37.9]} 14.
Bg5 {[%clk 0:04:30.2]} 14... Qg6 {[%clk 0:04:35.6]} 15. Qxg6 {[%clk 0:04:26.9]}
15... fxg6 {[%clk 0:04:33.5]} 16. Nd2 {[%clk 0:04:23]} 16... Be6 {[%clk
0:04:24.8]} 17. c4 {[%clk 0:04:20.1]} 17... dxc4 {[%clk 0:04:22.5]} 18. bxc4
{[%clk 0:04:18.9]} 18... bxc4 {[%clk 0:04:20.6]} 19. dxc4 {[%clk 0:04:17.8]}
19... Kf7 {[%clk 0:04:15.8]} 20. f4 {[%clk 0:04:15]} 20... exf4 {[%clk
0:04:13.8]} 21. gxf4 {[%clk 0:04:13.7]} 21... Rab8 {[%clk 0:04:12.5]} 22. b3
{[%clk 0:04:11.2]} 22... a5 {[%clk 0:04:10.5]} 23. Kf2 {[%clk 0:04:00]} 23... h6
{[%clk 0:04:09.1]} 24. Bh4 {[%clk 0:03:58.5]} 24... Rhe8 {[%clk 0:03:56.1]} 25.
Rhe1 {[%clk 0:03:53]} 25... Bf5 {[%clk 0:03:53.4]} 26. Rxe8 {[%clk 0:03:37.8]}
26... Rxe8 {[%clk 0:03:50.2]} 27. Re1 {[%clk 0:03:37.4]} 27... Rxe1 {[%clk
0:03:47.4]} 28. Kxe1 {[%clk 0:03:36.3]} 28... Bc2 {[%clk 0:03:44.1]} 29. Bf2
{[%clk 0:03:32.3]} 29... Nb4 {[%clk 0:03:41.7]} 30. Ke2 {[%clk 0:03:15.9]} 30...
Kf6 {[%clk 0:03:37.7]} 31. Ke3 {[%clk 0:03:14.4]} 31... Nd3 {[%clk 0:03:32.6]}
32. Bg3 {[%clk 0:03:10.3]} 32... Nc5 {[%clk 0:03:28.1]} 33. f5 {[%clk
0:02:58.4]} 33... Nxb3 {[%clk 0:03:14.9]} 34. Nxb3 {[%clk 0:02:54.3]} 34... Bxb3
{[%clk 0:03:13.8]} 35. Kd4 {[%clk 0:02:53.1]} 35... gxf5 {[%clk 0:03:06.8]} 36.
Bxc7 {[%clk 0:02:51.1]} 36... a4 {[%clk 0:03:05.2]} 37. Be5+ {[%clk 0:02:48.4]}
37... Kg6 {[%clk 0:03:03]} 38. c5 {[%clk 0:02:47.1]} 38... Be6 {[%clk
0:02:56.8]} 39. Kc3 {[%clk 0:02:44]} 39... Bd5 {[%clk 0:02:52.7]} 40. g3 {[%clk
0:02:41.7]} 40... Kf7 {[%clk 0:02:50.7]} 41. Kb4 {[%clk 0:02:40.2]} 41... a3
{[%clk 0:02:43.2]} 42. Kxa3 {[%clk 0:02:38.8]} 42... g5 {[%clk 0:02:42.6]} 43.
Kb4 {[%clk 0:02:37]} 43... Ke6 {[%clk 0:02:41.4]} 44. Bd6 {[%clk 0:02:34.3]}
44... h5 {[%clk 0:02:40]} 45. Kc3 {[%clk 0:02:32.9]} 45... f4 {[%clk 0:02:37.3]}
46. gxf4 {[%clk 0:02:30]} 46... gxf4 {[%clk 0:02:36.5]} 47. Bxf4 {[%clk
0:02:28.4]} 47... Kf5 {[%clk 0:02:34.7]} 48. Bd6 {[%clk 0:02:26.8]} 48... h4
{[%clk 0:02:33.6]} 1/2-1/2

[Event "Live Chess"]
[Site "Chess.com"]
[Date "2023.05.21"]
[Round "-"]
[White "JanMur7"]
[Black "SteveValentine83"]
[Result "1-0"]
[WhiteElo "1954"]
[BlackElo "1531"]
[TimeControl "300"]
[EndTime "2:34:05 PDT"]
[Termination "JanMur7 won by resignation"]

1. e4 {[%clk 0:04:58.6]} 1... d5 {[%clk 0:04:59.1]} 2. exd5 {[%clk 0:04:55.9]}
2... Nf6 {[%clk 0:04:58.6]} 3. Nc3 {[%clk 0:04:55.8]} 3... Nxd5 {[%clk
0:04:57.7]} 4. Nf3 {[%clk 0:04:54.1]} 4... Nxc3 {[%clk 0:04:54]} 5. bxc3 {[%clk
0:04:54]} 5... Nc6 {[%clk 0:04:51.2]} 6. Bb5 {[%clk 0:04:52.7]} 6... Qd5 {[%clk
0:04:42.7]} 7. c4 {[%clk 0:04:50.4]} 7... Qe4+ {[%clk 0:04:30.9]} 8. Qe2 {[%clk
0:04:48.7]} 8... Qxe2+ {[%clk 0:04:29.3]} 9. Kxe2 {[%clk 0:04:48.6]} 9... Bd7
{[%clk 0:04:25]} 10. d3 {[%clk 0:04:46.3]} 10... a6 {[%clk 0:04:23.2]} 11. Ba4
{[%clk 0:04:45]} 11... g6 {[%clk 0:04:09.1]} 12. Bb2 {[%clk 0:04:41]} 12... f6
{[%clk 0:04:08.3]} 13. Rhg1 {[%clk 0:04:35.1]} 13... e5 {[%clk 0:04:06.6]} 14.
Nd2 {[%clk 0:04:23.8]} 14... Nd4+ {[%clk 0:03:54.1]} 15. Bxd4 {[%clk 0:04:18.9]}
15... Bxa4 {[%clk 0:03:49.5]} 16. Bc3 {[%clk 0:04:15.4]} 16... O-O-O {[%clk
0:03:28.2]} 17. Ne4 {[%clk 0:04:02.4]} 17... Bxc2 {[%clk 0:03:18.4]} 18. Nxf6
{[%clk 0:03:58.2]} 18... Bxd3+ {[%clk 0:03:16.9]} 19. Ke1 {[%clk 0:03:57.3]}
19... Bg7 {[%clk 0:03:12.2]} 20. Ng4 {[%clk 0:03:50.2]} 20... Bxc4 {[%clk
0:03:01]} 21. Nxe5 {[%clk 0:03:48.6]} 21... Bxe5 {[%clk 0:02:58.8]} 22. Bxe5
{[%clk 0:03:46.9]} 22... Rhe8 {[%clk 0:02:57]} 23. f4 {[%clk 0:03:45.6]} 23...
g5 {[%clk 0:02:47.2]} 24. g3 {[%clk 0:03:42.9]} 24... Rd3 {[%clk 0:02:09.9]} 25.
Rc1 {[%clk 0:03:33.8]} 25... b5 {[%clk 0:02:06.9]} 26. Rc2 {[%clk 0:03:17.7]}
26... Ra3 {[%clk 0:02:00.4]} 27. Kf2 {[%clk 0:03:06.7]} 27... Rxa2 {[%clk
0:01:59.1]} 28. Rxa2 {[%clk 0:03:05.3]} 28... Bxa2 {[%clk 0:01:59]} 29. Ra1
{[%clk 0:03:04.9]} 29... gxf4 {[%clk 0:01:52.5]} 30. gxf4 {[%clk 0:03:00.8]}
30... Bc4 {[%clk 0:01:42.1]} 31. Rxa6 {[%clk 0:02:59]} 31... Kb7 {[%clk
0:01:27.9]} 32. Rf6 {[%clk 0:02:42.4]} 32... Re7 {[%clk 0:01:25]} 33. Ke3 {[%clk
0:02:40.2]} 33... c6 {[%clk 0:01:17.6]} 34. Kd4 {[%clk 0:02:36.1]} 34... Bd5
{[%clk 0:01:14.7]} 35. Kc5 {[%clk 0:02:34.5]} 35... Rd7 {[%clk 0:01:07.3]} 36.
Rf8 {[%clk 0:02:32.5]} 36... Rf7 {[%clk 0:01:03.9]} 37. Rb8+ {[%clk 0:02:27.3]}
37... Ka7 {[%clk 0:01:01.7]} 38. Rd8 {[%clk 0:02:00.7]} 38... Rb7 {[%clk
0:00:58.1]} 39. Rd6 {[%clk 0:01:54.2]} 39... b4 {[%clk 0:00:55.1]} 40. Bb2
{[%clk 0:01:29.4]} 40... b3 {[%clk 0:00:52.5]} 41. Rd8 {[%clk 0:01:27.4]} 41...
Rb5+ {[%clk 0:00:48.2]} 42. Kd4 {[%clk 0:01:24.7]} 42... Rb4+ {[%clk 0:00:44.1]}
43. Ke3 {[%clk 0:01:20.1]} 43... Rc4 {[%clk 0:00:40.7]} 44. Rd7+ {[%clk
0:01:14]} 44... Kb6 {[%clk 0:00:40.1]} 45. Rxh7 {[%clk 0:01:07.4]} 45... Rc2
{[%clk 0:00:39.5]} 46. Bd4+ {[%clk 0:01:05.7]} 46... c5 {[%clk 0:00:35.2]} 47.
Rh6+ {[%clk 0:01:01.6]} 47... Kb5 {[%clk 0:00:34]} 48. Bh8 {[%clk 0:00:58.8]}
48... b2 {[%clk 0:00:31.6]} 49. Bxb2 {[%clk 0:00:58.3]} 49... Rxb2 {[%clk
0:00:30.7]} 50. f5 {[%clk 0:00:57.4]} 50... Rb1 {[%clk 0:00:24.4]} 51. Rd6
{[%clk 0:00:48.5]} 51... Bf7 {[%clk 0:00:19.2]} 52. Rd7 {[%clk 0:00:46.2]} 52...
Bh5 {[%clk 0:00:16.2]} 53. Rb7+ {[%clk 0:00:42.9]} 1-0

[Event "Live Chess"]
[Site "Chess.com"]
[Date "2023.05.21"]
[Round "-"]
[White "yeetpizza74"]
[Black "domrobson"]
[Result "0-1"]
[WhiteElo "481"]
[BlackElo "1717"]
[TimeControl "300"]
[EndTime "2:34:12 PDT"]
[Termination "domrobson won by checkmate"]

1. e4 {[%clk 0:04:57.9]} 1... e5 {[%clk 0:04:59.2]} 2. Nf3 {[%clk 0:04:56.6]}
2... Nc6 {[%clk 0:04:57.4]} 3. Bc4 {[%clk 0:04:55.3]} 3... Nf6 {[%clk
0:04:56.2]} 4. Ng5 {[%clk 0:04:53.5]} 4... d5 {[%clk 0:04:54.2]} 5. exd5 {[%clk
0:04:50.1]} 5... b5 {[%clk 0:04:52.9]} 6. dxc6 {[%clk 0:04:37.3]} 6... bxc4
{[%clk 0:04:51.3]} 7. Nc3 {[%clk 0:04:35.7]} 7... Bd6 {[%clk 0:04:44.3]} 8. d3
{[%clk 0:04:28.7]} 8... cxd3 {[%clk 0:04:41.2]} 9. cxd3 {[%clk 0:04:25.2]} 9...
O-O {[%clk 0:04:40.2]} 10. O-O {[%clk 0:04:11.3]} 10... h6 {[%clk 0:04:37.4]}
11. Nge4 {[%clk 0:04:07.9]} 11... Nxe4 {[%clk 0:04:35.9]} 12. dxe4 {[%clk
0:04:06.3]} 12... Be7 {[%clk 0:04:35.3]} 13. Nd5 {[%clk 0:03:56]} 13... Bd6
{[%clk 0:04:32.9]} 14. Be3 {[%clk 0:03:44.7]} 14... f5 {[%clk 0:04:30.4]} 15.
exf5 {[%clk 0:03:43.1]} 15... Bxf5 {[%clk 0:04:27.6]} 16. Qd2 {[%clk 0:03:27.7]}
16... e4 {[%clk 0:04:22.1]} 17. Rad1 {[%clk 0:03:17.3]} 17... Qh4 {[%clk
0:04:18.5]} 18. Bf4 {[%clk 0:03:12.7]} 18... Bxf4 {[%clk 0:04:12.3]} 19. Nxf4
{[%clk 0:03:09.2]} 19... Rad8 {[%clk 0:04:05.9]} 20. Qe2 {[%clk 0:03:04.6]}
20... Qxf4 {[%clk 0:04:00.6]} 21. g3 {[%clk 0:02:57.7]} 21... Qf3 {[%clk
0:03:52.5]} 22. Rxd8 {[%clk 0:02:50.5]} 22... Qxe2 {[%clk 0:03:49.9]} 23. Rxf8+
{[%clk 0:02:47.1]} 23... Kxf8 {[%clk 0:03:48.6]} 24. Kg2 {[%clk 0:02:45.9]}
24... Bh3+ {[%clk 0:03:45.9]} 25. Kg1 {[%clk 0:02:39.8]} 25... Qxf1# {[%clk
0:03:45.8]} 0-1

[Event "Live Chess"]
[Site "Chess.com"]
[Date "2023.05.21"]
[Round "-"]
[White "HadesLearmonth"]
[Black "ChessClubLive"]
[Result "0-1"]
[WhiteElo "1190"]
[BlackElo "1790"]
[TimeControl "300"]
[EndTime "2:34:15 PDT"]
[Termination "ChessClubLive won by resignation"]

1. e4 {[%clk 0:04:57.9]} 1... c5 {[%clk 0:04:58]} 2. Nf3 {[%clk 0:04:56.4]} 2...
e6 {[%clk 0:04:55.9]} 3. d4 {[%clk 0:04:55]} 3... cxd4 {[%clk 0:04:55.1]} 4.
Nxd4 {[%clk 0:04:53.6]} 4... Nf6 {[%clk 0:04:53.9]} 5. Nc3 {[%clk 0:04:51.7]}
5... Bb4 {[%clk 0:04:53.1]} 6. Bd3 {[%clk 0:04:47.8]} 6... Nc6 {[%clk
0:04:48.8]} 7. Nxc6 {[%clk 0:04:45.5]} 7... dxc6 {[%clk 0:04:45.5]} 8. O-O
{[%clk 0:04:43.9]} 8... O-O {[%clk 0:04:42.6]} 9. Ne2 {[%clk 0:04:36.8]} 9...
Qc7 {[%clk 0:04:37.4]} 10. Bf4 {[%clk 0:04:32.2]} 10... e5 {[%clk 0:04:22.7]}
11. Bg3 {[%clk 0:04:25.9]} 11... Bc5 {[%clk 0:04:12.5]} 12. c3 {[%clk
0:04:19.8]} 12... Bg4 {[%clk 0:04:07.8]} 13. b4 {[%clk 0:04:16.5]} 13... Bb6
{[%clk 0:04:06.4]} 14. a4 {[%clk 0:04:14.7]} 14... a6 {[%clk 0:04:04.8]} 15. a5
{[%clk 0:04:13.6]} 15... Ba7 {[%clk 0:04:04.1]} 16. Qb3 {[%clk 0:04:01.5]} 16...
Rad8 {[%clk 0:03:58.9]} 17. Bc4 {[%clk 0:03:57.9]} 17... Nxe4 {[%clk 0:03:53.5]}
18. Nc1 {[%clk 0:03:50.7]} 18... Nd2 {[%clk 0:03:49.4]} 19. Qa2 {[%clk
0:03:45.7]} 19... Nxf1 {[%clk 0:03:35.3]} 20. h3 {[%clk 0:03:44]} 20... Rd1
{[%clk 0:03:21.7]} 21. Bxf1 {[%clk 0:03:26.4]} 21... Be6 {[%clk 0:03:15.6]} 22.
Qe2 {[%clk 0:03:20.2]} 22... Qd7 {[%clk 0:02:58.5]} 23. Bxe5 {[%clk 0:03:12.8]}
23... Rd2 {[%clk 0:02:57.6]} 24. Qg4 {[%clk 0:03:04.8]} 24... Bxg4 {[%clk
0:02:50.9]} 25. hxg4 {[%clk 0:02:59.5]} 0-1

[Event "Live Chess"]
[Site "Chess.com"]
[Date "2023.05.21"]
[Round "-"]
[White "daveeeeR"]
[Black "LiamBellwood"]
[Result "0-1"]
[WhiteElo "1295"]
[BlackElo "1958"]
[TimeControl "300"]
[EndTime "2:34:34 PDT"]
[Termination "LiamBellwood won by resignation"]

1. d4 {[%clk 0:04:58.9]} 1... e6 {[%clk 0:04:59.2]} 2. Bf4 {[%clk 0:04:57.5]}
2... f5 {[%clk 0:04:58.5]} 3. Nf3 {[%clk 0:04:56.8]} 3... Nf6 {[%clk 0:04:58.1]}
4. c4 {[%clk 0:04:55]} 4... b6 {[%clk 0:04:57.4]} 5. Nc3 {[%clk 0:04:52.9]} 5...
Bb7 {[%clk 0:04:57.3]} 6. e3 {[%clk 0:04:45]} 6... Bb4 {[%clk 0:04:56.8]} 7. Bd3
{[%clk 0:04:38.4]} 7... O-O {[%clk 0:04:51.4]} 8. O-O {[%clk 0:04:36.5]} 8...
Bxc3 {[%clk 0:04:48.4]} 9. bxc3 {[%clk 0:04:35]} 9... Ne4 {[%clk 0:04:48.3]} 10.
Bxe4 {[%clk 0:04:31.5]} 10... Bxe4 {[%clk 0:04:39.2]} 11. Bg5 {[%clk 0:04:23.9]}
11... Bxf3 {[%clk 0:04:31.6]} 12. Bxd8 {[%clk 0:04:21.4]} 12... Bxd1 {[%clk
0:04:30.8]} 13. Raxd1 {[%clk 0:04:19.5]} 13... Rxd8 {[%clk 0:04:29.6]} 14. d5
{[%clk 0:04:17]} 14... e5 {[%clk 0:04:28.6]} 15. f4 {[%clk 0:04:14.2]} 15... d6
{[%clk 0:04:28]} 16. fxe5 {[%clk 0:04:12.6]} 16... dxe5 {[%clk 0:04:27.9]} 17.
Rxf5 {[%clk 0:04:08.5]} 17... Nd7 {[%clk 0:04:24.6]} 18. e4 {[%clk 0:04:02.4]}
18... Rf8 {[%clk 0:04:20.2]} 19. Rh5 {[%clk 0:03:56.1]} 19... Rf4 {[%clk
0:04:18.5]} 20. Re1 {[%clk 0:03:50.6]} 20... g6 {[%clk 0:04:17.3]} 21. g3 {[%clk
0:03:47.7]} 21... Rf3 {[%clk 0:04:13.5]} 22. Rh3 {[%clk 0:03:45]} 22... Rxc3
{[%clk 0:04:12.5]} 0-1

[Event "Live Chess"]
[Site "Chess.com"]
[Date "2023.05.21"]
[Round "-"]
[White "Crowded_House"]
[Black "BritishIsles"]
[Result "0-1"]
[WhiteElo "1664"]
[BlackElo "2415"]
[TimeControl "300"]
[EndTime "2:34:43 PDT"]
[Termination "BritishIsles won by checkmate"]

1. d4 {[%clk 0:04:56.6]} 1... d5 {[%clk 0:04:58.4]} 2. Bg5 {[%clk 0:04:56]} 2...
c5 {[%clk 0:04:55]} 3. dxc5 {[%clk 0:04:50.6]} 3... h6 {[%clk 0:04:51.4]} 4. Bh4
{[%clk 0:04:48.9]} 4... Qa5+ {[%clk 0:04:47.1]} 5. Nc3 {[%clk 0:04:41.2]} 5...
e6 {[%clk 0:04:45.5]} 6. e3 {[%clk 0:04:37.9]} 6... Bxc5 {[%clk 0:04:43.5]} 7.
Nf3 {[%clk 0:04:36.1]} 7... Bb4 {[%clk 0:04:40.8]} 8. Qd2 {[%clk 0:04:07.6]}
8... Nc6 {[%clk 0:04:38.8]} 9. a3 {[%clk 0:04:06.4]} 9... Nf6 {[%clk 0:04:35.2]}
10. Bxf6 {[%clk 0:03:59.4]} 10... gxf6 {[%clk 0:04:35.1]} 11. Bd3 {[%clk
0:03:58.5]} 11... Bd7 {[%clk 0:04:29.8]} 12. O-O {[%clk 0:03:57.3]} 12... Bxc3
{[%clk 0:04:28.3]} 13. Qxc3 {[%clk 0:03:56]} 13... Qxc3 {[%clk 0:04:26.5]} 14.
bxc3 {[%clk 0:03:55.7]} 14... Rc8 {[%clk 0:04:25.7]} 15. c4 {[%clk 0:03:47.2]}
15... dxc4 {[%clk 0:04:20.5]} 16. Bxc4 {[%clk 0:03:45.7]} 16... Ke7 {[%clk
0:04:19]} 17. Bb3 {[%clk 0:03:41.9]} 17... Ne5 {[%clk 0:04:15.1]} 18. Nxe5
{[%clk 0:03:36.7]} 18... fxe5 {[%clk 0:04:15]} 19. Rfd1 {[%clk 0:03:29.5]} 19...
Rc3 {[%clk 0:04:09.6]} 20. Rd3 {[%clk 0:03:22]} 20... Rhc8 {[%clk 0:04:07.7]}
21. Rxc3 {[%clk 0:03:19.8]} 21... Rxc3 {[%clk 0:04:06]} 22. a4 {[%clk
0:03:13.7]} 22... a5 {[%clk 0:04:03.3]} 23. Rd1 {[%clk 0:03:11.4]} 23... Bc6
{[%clk 0:03:58.4]} 24. Rd3 {[%clk 0:03:06.1]} 24... Rxd3 {[%clk 0:03:49.8]} 25.
cxd3 {[%clk 0:03:05.1]} 25... Kd6 {[%clk 0:03:48.5]} 26. Bc4 {[%clk 0:02:57.4]}
26... Kc5 {[%clk 0:03:46]} 27. Bb3 {[%clk 0:02:30.3]} 27... Kb4 {[%clk 0:03:44]}
28. Bc2 {[%clk 0:02:28]} 28... Bxa4 {[%clk 0:03:42.9]} 29. Bb1 {[%clk
0:02:22.1]} 29... Kb3 {[%clk 0:03:39.2]} 30. d4 {[%clk 0:02:21.3]} 30... exd4
{[%clk 0:03:37.4]} 31. exd4 {[%clk 0:02:20.4]} 31... Kb2 {[%clk 0:03:36.3]} 32.
Bh7 {[%clk 0:02:13.4]} 32... Be8 {[%clk 0:03:27.3]} 33. Be4 {[%clk 0:02:04.5]}
33... a4 {[%clk 0:03:23.9]} 34. d5 {[%clk 0:02:04]} 34... a3 {[%clk 0:03:20.6]}
35. dxe6 {[%clk 0:02:00.3]} 35... a2 {[%clk 0:03:18.6]} 36. exf7 {[%clk
0:01:59]} 36... a1=Q+ {[%clk 0:03:16.5]} 37. Bb1 {[%clk 0:01:56.3]} 37... Qxb1#
{[%clk 0:03:14.6]} 0-1

[Event "Live Chess"]
[Site "Chess.com"]
[Date "2023.05.21"]
[Round "-"]
[White "SupremeTactician"]
[Black "elephantgerrald"]
[Result "1-0"]
[WhiteElo "2261"]
[BlackElo "688"]
[TimeControl "300"]
[EndTime "2:34:47 PDT"]
[Termination "SupremeTactician won by checkmate"]

1. e4 {[%clk 0:04:58.9]} 1... e5 {[%clk 0:04:58.2]} 2. Nf3 {[%clk 0:04:57.4]}
2... Nc6 {[%clk 0:04:56.1]} 3. Nc3 {[%clk 0:04:56.7]} 3... Nf6 {[%clk
0:04:54.3]} 4. Bb5 {[%clk 0:04:55.8]} 4... Bb4 {[%clk 0:04:51.4]} 5. O-O {[%clk
0:04:53]} 5... Bxc3 {[%clk 0:04:50.3]} 6. bxc3 {[%clk 0:04:51.1]} 6... O-O
{[%clk 0:04:48]} 7. d3 {[%clk 0:04:50.5]} 7... a6 {[%clk 0:04:46.5]} 8. Bxc6
{[%clk 0:04:49.2]} 8... dxc6 {[%clk 0:04:45.3]} 9. Nxe5 {[%clk 0:04:48.9]} 9...
Nxe4 {[%clk 0:04:41.7]} 10. dxe4 {[%clk 0:04:47]} 10... Qxd1 {[%clk 0:04:39.5]}
11. Rxd1 {[%clk 0:04:46.9]} 11... Re8 {[%clk 0:04:36.9]} 12. Bf4 {[%clk
0:04:43.8]} 12... f6 {[%clk 0:04:34.8]} 13. Nf3 {[%clk 0:04:38]} 13... Rxe4
{[%clk 0:04:32.2]} 14. Bxc7 {[%clk 0:04:35.5]} 14... Bg4 {[%clk 0:04:29.9]} 15.
Rd4 {[%clk 0:04:32.7]} 15... Bxf3 {[%clk 0:04:22.5]} 16. gxf3 {[%clk 0:04:32.6]}
16... Rxd4 {[%clk 0:04:21.4]} 17. cxd4 {[%clk 0:04:31.8]} 17... Rc8 {[%clk
0:04:20.1]} 18. Bg3 {[%clk 0:04:29]} 18... g5 {[%clk 0:04:18.6]} 19. Kf1 {[%clk
0:04:28.2]} 19... h5 {[%clk 0:04:17.3]} 20. h3 {[%clk 0:04:27.1]} 20... f5
{[%clk 0:04:15.9]} 21. Be5 {[%clk 0:04:25.8]} 21... b6 {[%clk 0:04:14.2]} 22.
Re1 {[%clk 0:04:22.8]} 22... Re8 {[%clk 0:04:11.6]} 23. Bc7 {[%clk 0:04:19.9]}
23... Rxe1+ {[%clk 0:04:09.7]} 24. Kxe1 {[%clk 0:04:19.8]} 24... b5 {[%clk
0:04:07.5]} 25. Bd8 {[%clk 0:04:17.7]} 25... g4 {[%clk 0:04:04.8]} 26. fxg4
{[%clk 0:04:17.6]} 26... fxg4 {[%clk 0:04:03.9]} 27. hxg4 {[%clk 0:04:17.5]}
27... hxg4 {[%clk 0:04:02.9]} 28. Ke2 {[%clk 0:04:16.6]} 28... Kf7 {[%clk
0:04:01.8]} 29. Ke3 {[%clk 0:04:16.1]} 29... Kg6 {[%clk 0:04:00.9]} 30. Kf4
{[%clk 0:04:15.4]} 30... Kh5 {[%clk 0:03:59.5]} 31. c3 {[%clk 0:04:14.4]} 31...
Kg6 {[%clk 0:03:48.4]} 32. Kxg4 {[%clk 0:04:13.2]} 32... Kf7 {[%clk 0:03:47.1]}
33. Bb6 {[%clk 0:04:12.2]} 33... Kf6 {[%clk 0:03:44.2]} 34. f4 {[%clk
0:04:11.5]} 34... Kf7 {[%clk 0:03:43.1]} 35. f5 {[%clk 0:04:10.9]} 35... Kf8
{[%clk 0:03:41.9]} 36. Kg5 {[%clk 0:04:10.4]} 36... Kf7 {[%clk 0:03:36.2]} 37.
f6 {[%clk 0:04:09.2]} 37... Kf8 {[%clk 0:03:35.3]} 38. Kg6 {[%clk 0:04:08.6]}
38... Ke8 {[%clk 0:03:34.2]} 39. f7+ {[%clk 0:04:07.9]} 39... Kf8 {[%clk
0:03:33.2]} 40. Bc5# {[%clk 0:04:07.1]} 1-0